Workbook

Sheet Лист1
A1: 10 | B1: =A1+10 -> 20 | C1: =B1+10 -> 30 | D1: 40 | E1: 50 | F1: 60 | G1: 70 | H1: 80 | I1: 90 | J1: 100
A2: =J1+10 -> 110 | B2: =A2+10 -> 120 | C2: 130 | D2: 140 | E2: 150 | F2: 160 | G2: 170 | H2: 180 | I2: 190 | J2: 200
A3: =J2+10 -> 210 | B3: =A3+10 -> 220 | C3: 230 | D3: 240 | E3: 250 | F3: 260 | G3: 270 | H3: 280 | I3: 290 | J3: 300
A4: 310 | B4: =A4+10 -> 320 | C4: 330 | D4: 340 | E4: 350 | F4: 360 | G4: 370 | H4: 380 | I4: 390 | J4: 400
A5: 410 | B5: =A5+10 -> 420 | C5: 430 | D5: 440 | E5: 450 | F5: 460 | G5: 470 | H5: 480 | I5: 490 | J5: 500
A6: 510 | B6: =A6+10 -> 520 | C6: 530 | D6: 540 | E6: 550 | F6: 560 | G6: 570 | H6: 580 | I6: 590 | J6: 600
A7: 610 | B7: =A7+10 -> 620 | C7: 630 | D7: 640 | E7: 650 | F7: 660 | G7: 670 | H7: 680 | I7: 690 | J7: 700
A8: 710 | B8: =A8+10 -> 720 | C8: 730 | D8: 740 | E8: 750 | F8: 760 | G8: 770 | H8: 780 | I8: 790 | J8: 800
A9: 810 | B9: =A9+10 -> 820 | C9: 830 | D9: 840 | E9: 850 | F9: 860 | G9: 870 | H9: 880 | I9: 890 | J9: 900
A10: 910 | B10: =A10+10 -> 920 | C10: 930 | D10: 940 | E10: 950 | F10: 960 | G10: 970 | H10: 980 | I10: 990 | J10: 1000
F12: 30000 | H12: 10000
F13: =F12/SUM(Kopi) -> 0.5940594059

Sheet подработки
A1: 2024 | B1: =SUMIF(A4:A31,"<01.01.2025",B4:B31) -> 22800 | L1: Октябрь | M1: =SUMIF($C$4:$C$31,L1,$B$4:$B$31) -> 2400
A2: 2025 | B2: =SUMIF(A4:A31,">=01.01.2025",B4:B31) -> 35200 | L2: Ноябрь | M2: =SUMIF($C$4:$C$31,L2,$B$4:$B$31) -> 12000
L3: Декабрь | M3: =SUMIF($C$4:$C$31,L3,$B$4:$B$31) -> 8400
A4: 2024-10-10 | B4: 2400 | C4: =IF(A4="","",TEXT(A4,"ММММ")) -> Октябрь | L4: Январь | M4: =SUMIF($C$4:$C$31,L4,$B$4:$B$31) -> 0
A5: 2024-11-01 | B5: 2400 | C5: Ноябрь | L5: Февраль | M5: 6400
A6: 2024-11-05 | B6: =2400*4 -> 9600 | C6: Ноябрь | L6: Март | M6: 0
A7: 2024-12-15 | B7: 2800 | C7: Декабрь | L7: Апрель | M7: 9600
A8: 2024-12-16 | B8: =2800 -> 2800 | C8: Декабрь | L8: Май | M8: 19200
A9: 2024-12-28 | B9: 2800 | C9: Декабрь | L9: Июнь | M9: 0
A10: 2025-02-03 | B10: 3200 | C10: Февраль | L10: Июль | M10: 0
A11: 2025-02-14 | B11: 3200 | C11: Февраль | L11: Август | M11: 0
A12: 2025-04-02 | B12: 3200 | C12: Апрель | L12: Сентябрь | M12: 0
A13: 2025-04-20 | B13: =3200*2 -> 6400 | C13: Апрель
A14: 2025-05-22 | B14: =3200*6 -> 19200 | C14: Май
